fUSD/lending_fUSD_20240319
["ID","MTS","AMOUNT","RATE_DAILY","PERIOD"]
[319514896,1710815485344,-500.0,0.00055342,120]
[319514897,1710815485353,-961.27,0.00055342,120]
[319514898,1710815485362,-500.0,0.00055342,120]
[319514899,1710815485373,-500.0,0.00055342,120]
[319514900,1710815485382,-500.0,0.00055342,120]
[319514901,1710815485392,-1724.04,0.00055342,120]
[319514902,1710815485402,-1244.55,0.00055342,120]
[319514903,1710815485411,-500.0,0.00055342,120]
[319514904,1710815485422,-1361.94,0.00055342,120]
[319514905,1710815485434,-1493.98,0.00055342,120]
[319514906,1710815485444,-161.41002488,0.00055342,120]
[319514907,1710815485454,-500.0,0.00055342,120]
[319514908,1710815485463,-557.1,0.00055342,120]
[319514909,1710815485473,-500.0,0.00055342,120]
[319514910,1710815485482,-500.0,0.00055342,120]
[319514911,1710815485491,-500.0,0.00055342,120]
[319514912,1710815485501,-1193.96,0.00055342,120]
[319514913,1710815485510,-500.0,0.00055342,120]
[319514914,1710815485519,-500.0,0.00055342,120]
[319514915,1710815485529,-500.61230499,0.00055342,120]
[319514916,1710815485538,-500.0,0.00055342,120]
[319514917,1710815485547,-1401.66,0.00055342,120]
[319514918,1710815485555,-500.0,0.00055342,120]
[319514919,1710815485564,-1463.59,0.00055342,120]
[319514920,1710815485574,-500.0,0.00055342,120]
[319514921,1710815485583,-500.0,0.00055342,120]
[319514922,1710815485592,-1296.76,0.00055342,120]
[319514923,1710815485601,-500.0,0.00055342,120]
[319514924,1710815485610,-2724.62,0.00055342,120]
[319514925,1710815485619,-500.0,0.00055342,120]
[319514926,1710815485628,-500.0,0.00055342,120]
[319514927,1710815485637,-501.36744149,0.00055342,120]
[319514928,1710815485646,-500.0,0.00055342,120]
[319514929,1710815485655,-1295.46,0.00055342,120]
[319514930,1710815485664,-500.0,0.00055342,120]
[319514931,1710815485673,-2130.32,0.00055342,120]
[319514932,1710815485683,-1974.77,0.00055342,120]
[319514933,1710815485693,-500.0,0.00055342,120]
[319514934,1710815485702,-657.52,0.00055342,120]
[319514935,1710815485711,-500.0,0.00055342,120]
[319514936,1710815485720,-500.0,0.00055342,120]
[319514937,1710815485729,-500.0,0.00055342,120]
[319514938,1710815485738,-500.0,0.00055342,120]
[319514939,1710815485747,-1422.76,0.00055342,120]
[319514940,1710815485756,-500.0,0.00055342,120]
[319514941,1710815485765,-500.0,0.00055342,120]
[319514942,1710815485774,-1557.62,0.00055342,120]
[319514943,1710815485783,-500.0,0.00055342,120]
[319514944,1710815485792,-334.88103318,0.00055342,120]
[319514945,1710815485802,-1606.02,0.00055342,120]
[319514946,1710815485811,-500.0,0.00055342,120]
[319514947,1710815485820,-1777.9,0.00055342,120]
[319514948,1710815485829,-1089.25,0.00055342,120]
[319514949,1710815485838,-500.0,0.00055342,120]
[319514950,1710815485847,-500.0,0.00055342,120]
[319514951,1710815485856,-1205.53,0.00055342,120]
[319514952,1710815485865,-2696.99,0.00055342,120]
[319514953,1710815485875,-1152.46,0.00055342,120]
[319514954,1710815485885,-500.0,0.00055342,120]
[319514955,1710815485895,-846.6,0.00055342,120]
[319514956,1710815485904,-810.32,0.00055342,120]
[319514957,1710815485913,-500.0,0.00055342,120]
[319514958,1710815485922,-500.0,0.00055342,120]
[319514959,1710815485931,-500.0,0.00055342,120]
[319514960,1710815485941,-2202.94,0.00055342,120]
[319514961,1710815485950,-500.0,0.00055342,120]
[319514962,1710815485959,-2109.59,0.00055342,120]
[319514963,1710815485968,-1027.56,0.00055342,120]
[319514964,1710815485977,-500.0,0.00055342,120]
[319514965,1710815485985,-500.0,0.00055342,120]
[319514966,1710815485994,-500.0,0.00055342,120]
[319514967,1710815486004,-500.0,0.00055342,120]
[319514968,1710815486013,-500.0,0.00055342,120]
[319514969,1710815486022,-500.0,0.00055342,120]
[319514970,1710815486031,-500.0,0.00055342,120]
[319514971,1710815486041,-1860.38,0.00055342,120]
[319514972,1710815486050,-500.0,0.00055342,120]
[319514973,1710815486059,-500.0,0.00055342,120]
[319514974,1710815486068,-9731.84,0.00055342,120]
[319514975,1710815486077,-500.0,0.00055342,120]
[319514976,1710815486085,-936.53,0.00055342,120]
[319514977,1710815486095,-1155.32,0.00055342,120]
[319514978,1710815486106,-7852.89,0.00055342,120]
[319514979,1710815486115,-1551.69,0.00055342,120]
[319514980,1710815486125,-500.0,0.00055342,120]
[319514981,1710815486134,-500.0,0.00055342,120]
[319514982,1710815486145,-1571.95,0.00055342,7]
[319514983,1710815486155,-500.0,0.00055342,120]
[319514984,1710815486164,-989.05,0.00055342,120]
[319514985,1710815486174,-500.0,0.00055342,120]
[319514986,1710815486185,-500.0,0.00055342,120]
[319514987,1710815486195,-628.0,0.00055342,120]
[319514988,1710815486205,-3467.47,0.00055342,120]
[319514989,1710815486218,-2761.03,0.00055342,120]
[319514990,1710815486227,-500.0,0.00055342,120]
[319514991,1710815486236,-500.0,0.00055342,120]
[319514992,1710815486246,-500.0,0.00055342,120]
[319514993,1710815486257,-500.0,0.00055342,120]
[319514994,1710815486266,-500.0,0.00055342,120]
[319514995,1710815486276,-500.0,0.00055342,120]
[319514996,1710815486286,-500.0,0.00055342,120]
[319514997,1710815486297,-2488.6,0.00055342,120]
[319514998,1710815486307,-500.0,0.00055342,120]
[319514999,1710815486317,-2441.22,0.00055342,120]
[319515000,1710815486327,-500.0,0.00055342,120]
[319515001,1710815486337,-500.0,0.00055342,120]
[319515002,1710815486346,-500.0,0.00055342,120]
[319515003,1710815486356,-500.0,0.00055342,120]
[319515004,1710815486365,-4712.42,0.00055342,120]
[319515005,1710815486374,-2924.24,0.00055342,120]
[319515006,1710815486383,-1341.63,0.00055342,120]
[319515007,1710815486393,-1196.76,0.00055342,120]
[319515008,1710815486403,-500.0,0.00055342,120]
[319515009,1710815486412,-500.0,0.00055342,120]
[319515010,1710815486421,-3847.33,0.00055342,120]
[319515011,1710815486431,-500.0,0.00055342,120]
[319515012,1710815486442,-500.0,0.00055342,120]
[319515013,1710815486451,-500.0,0.00055342,120]
[319515014,1710815486460,-500.0,0.00055342,120]
[319515015,1710815486470,-707.9,0.00055342,120]
[319515016,1710815486479,-992.27,0.00055342,120]
[319515017,1710815486488,-1637.59,0.00055342,120]
[319515018,1710815486498,-1862.01,0.00055342,120]
[319515019,1710815486507,-2398.68,0.00055342,120]
[319515020,1710815486516,-500.0,0.00055342,120]
[319515021,1710815486525,-500.0,0.00055342,120]
[319515022,1710815486535,-500.0,0.00055342,120]
[319515023,1710815486544,-1286.61,0.00055342,120]
[319515024,1710815486553,-500.0,0.00055342,120]
[319515025,1710815486562,-500.0,0.00055342,120]
[319515026,1710815486572,-4496.61,0.00055342,120]
[319515027,1710815486581,-1504.11,0.00055342,120]
[319515028,1710815486591,-500.0,0.00055342,120]
[319515029,1710815486600,-1636.39,0.00055342,120]
[319515030,1710815486610,-500.0,0.00055342,120]
[319515031,1710815486619,-1989.3,0.00055342,120]
[319515032,1710815486628,-517.02,0.00055342,120]
[319515033,1710815486637,-7477.17,0.00055342,120]
[319515034,1710815486647,-500.0,0.00055342,120]
[319515035,1710815486656,-766.61,0.00055342,120]
[319515036,1710815486665,-500.0,0.00055342,120]
[319515037,1710815486675,-500.0,0.00055342,120]
[319515038,1710815486685,-500.0,0.00055342,120]
[319515039,1710815486694,-526.3058967,0.00055342,120]
[319515040,1710815486703,-4908.68,0.00055342,120]
[319515041,1710815486712,-512.43,0.00055342,120]
[319515042,1710815486721,-500.0,0.00055342,120]
[319515043,1710815486730,-500.0,0.00055342,120]
[319515044,1710815486740,-500.0,0.00055342,120]
[319515045,1710815486749,-3697.55,0.00055342,120]
[319515046,1710815486759,-1124.0,0.00055342,120]
[319515047,1710815486768,-620.61,0.00055342,120]
[319515048,1710815486778,-887.73,0.00055342,120]
[319515049,1710815486787,-500.0,0.00055342,120]
[319515050,1710815486796,-1777.24,0.00055342,120]
[319515051,1710815486805,-500.0,0.00055342,120]
[319515052,1710815486815,-817.79,0.00055342,120]
[319515053,1710815486824,-500.0,0.00055342,120]
[319515054,1710815486834,-2895.4,0.00055342,120]
[319515055,1710815486843,-2137.7,0.00055342,120]
[319515056,1710815486853,-424.19514009,0.00055342,120]
[319515057,1710815486862,-500.0,0.00055342,120]
[319515058,1710815486871,-500.0,0.00055342,120]
[319515059,1710815486880,-776.43,0.00055342,120]
[319515060,1710815486889,-500.0,0.00055342,120]
[319515061,1710815486899,-500.0,0.00055342,120]
[319515062,1710815486908,-14779.54,0.00055342,120]
[319515063,1710815486918,-766.17,0.00055342,120]
[319515064,1710815486927,-500.0,0.00055342,120]
[319515065,1710815486939,-1375.07,0.00055342,120]
[319515066,1710815486948,-500.0,0.00055342,120]
[319515067,1710815486958,-200.0,0.00055342,120]
[319515068,1710815486968,-500.0,0.00055342,120]
[319515069,1710815486977,-1521.12,0.00055342,120]
[319515070,1710815486987,-1283.0,0.00055342,120]
[319515071,1710815486996,-500.0,0.00055342,120]
[319515072,1710815487006,-679.89,0.00055342,120]
[319515073,1710815487017,-598.46,0.00055342,2]
[319515074,1710815487027,-500.0,0.00055342,120]
[319515075,1710815487038,-500.0,0.00055342,120]
[319515076,1710815487048,-1257.67,0.00055342,120]
[319515077,1710815487058,-500.0,0.00055342,120]
[319515078,1710815487068,-758.2,0.00055342,120]
[319515079,1710815487079,-500.0,0.00055342,120]
[319515080,1710815487089,-1151.3,0.00055342,120]
[319515081,1710815487098,-500.0,0.00055342,2]
[319515082,1710815487109,-1196.93,0.00055342,120]
[319515083,1710815487118,-500.0,0.00055342,120]
[319515084,1710815487128,-500.0,0.00055342,120]
[319515085,1710815487138,-500.0,0.00055342,120]
[319515086,1710815487147,-500.0,0.00055342,120]
[319515087,1710815487157,-2331.78,0.00055342,120]
[319515088,1710815487167,-500.0,0.00055342,120]
[319515089,1710815487178,-500.0,0.00055342,120]
[319515090,1710815487193,-2838.88,0.00055342,120]
[319515091,1710815487203,-534.01,0.00055342,120]
[319515092,1710815487217,-500.0,0.00055342,120]
[319515093,1710815487227,-500.0,0.00055342,120]
[319515094,1710815487237,-500.0,0.00055342,120]
[319515095,1710815487247,-6940.79,0.00055342,120]
[319515096,1710815487259,-1785.73,0.00055342,120]
[319515097,1710815487268,-500.0,0.00055342,120]
[319515098,1710815487278,-669.38,0.00055342,120]
[319515099,1710815487288,-500.0,0.00055342,120]
[319515100,1710815487298,-500.0,0.00055342,120]
[319515101,1710815487308,-869.32,0.00055342,120]
[319515102,1710815487318,-1847.59,0.00055342,120]
[319515103,1710815487327,-500.0,0.00055342,120]
[319515104,1710815487337,-940.14,0.00055342,120]
[319515105,1710815487347,-518.95,0.00055342,120]
[319515106,1710815487357,-500.0,0.00055342,120]
[319515107,1710815487367,-880.116641,0.00055342,120]
[319515108,1710815487376,-3651.02,0.00055342,120]
[319515109,1710815487385,-500.0,0.00055342,120]
[319515110,1710815487395,-500.0,0.00055342,120]
[319515111,1710815487405,-500.0,0.00055342,120]
[319515112,1710815487415,-800.0,0.00055357,120]
[319515113,1710815487425,-250.0,0.000555,120]
[319515114,1710815487437,-150.0,0.000555,109]
[319515115,1710815487446,-3344.9134365,0.00055578,2]
[319515116,1710815487456,-500.0,0.00055616,30]
[319515117,1710815487465,-500.0,0.00055616,120]
[319515118,1710815487475,-500.0,0.00055616,120]
[319515119,1710815487485,-500.0,0.00055616,120]
[319515120,1710815487495,-500.0,0.00055616,120]
[319515121,1710815487505,-500.0,0.00055616,120]
[319515122,1710815487515,-500.0,0.00055616,120]
[319515123,1710815487524,-500.0,0.00055616,120]
[319515124,1710815487534,-500.0,0.00055616,120]
[319515125,1710815487543,-500.0,0.00055616,120]
[319515126,1710815487553,-500.0,0.00055616,120]
[319515127,1710815487562,-500.0,0.00055616,120]
[319515128,1710815487572,-429.38902618,0.00055616,120]
[319515129,1710815487582,-500.0,0.00055616,120]
[319515130,1710815487591,-500.0,0.00055616,120]
[319515131,1710815487601,-500.0,0.00055616,120]
[319515132,1710815487611,-500.0,0.00055616,120]
[319515133,1710815487621,-526.5,0.00055616,120]
[319515134,1710815487630,-500.0,0.00055616,120]
[319515135,1710815487639,-500.0,0.00055616,120]
[319515136,1710815487649,-500.0,0.00055616,120]
[319515137,1710815487658,-496.27231348,0.00055616,120]
[319515138,1710815487668,-500.0,0.00055616,120]
[319515139,1710815487677,-1145.69,0.00055616,120]
[319515140,1710815487689,-500.0,0.00055616,120]
[319515141,1710815487698,-925.71,0.00055616,120]
[319515142,1710815487708,-386.76476365,0.00055616,120]
[319515143,1710815487718,-500.0,0.00055616,120]
[319515144,1710815487727,-500.0,0.00055616,120]
[319515145,1710815487738,-1056.46,0.00055616,120]
[319515146,1710815487748,-160.93077634,0.00055616,120]
[319515147,1710815487758,-687.06,0.00055616,120]
[319515148,1710815487769,-500.0,0.00055616,120]
[319515149,1710815487780,-500.0,0.00055616,120]
[319515150,1710815487789,-500.0,0.00055616,120]
[319515151,1710815487800,-500.0,0.00055616,120]
[319515152,1710815487811,-500.0,0.00055616,120]
[319515153,1710815487820,-500.0,0.00055616,120]
[319515154,1710815487831,-500.0,0.00055616,120]
[319515155,1710815487841,-500.0,0.00055616,120]
[319515156,1710815487852,-500.0,0.00055616,120]
[319515157,1710815487863,-204.14077905,0.00055616,120]
[319515158,1710815487872,-500.0,0.00055616,120]
[319515159,1710815487882,-500.0,0.00055616,120]
[319515160,1710815487891,-500.0,0.00055616,120]
[319515161,1710815487901,-500.0,0.00055616,120]
[319515162,1710815487910,-500.0,0.00055616,120]
[319515163,1710815487919,-307.77,0.00055616,120]
[319515164,1710815487929,-500.0,0.00055616,120]
[319515165,1710815487941,-500.0,0.00055616,120]
[319515166,1710815487950,-500.17,0.00055616,120]
[319515167,1710815487959,-470.28831879,0.00055616,120]
[319515168,1710815487970,-500.0,0.00055616,120]
[319515169,1710815487980,-500.0,0.00055616,120]
[319515170,1710815487989,-500.0,0.00055616,120]
[319515171,1710815487999,-500.0,0.00055616,120]
[319515172,1710815488009,-500.0,0.00055616,120]
[319515173,1710815488020,-500.0,0.00055616,120]
[319515174,1710815488029,-500.0,0.00055616,120]
[319515175,1710815488040,-500.0,0.00055616,120]
[319515176,1710815488050,-500.0,0.00055616,120]
[319515177,1710815488060,-1329.78,0.00055616,120]
[319515178,1710815488070,-500.0,0.00055616,120]
[319515179,1710815488080,-500.0,0.00055616,120]
[319515180,1710815488090,-582.83,0.00055616,120]
[319515181,1710815488100,-500.0,0.00055616,120]
[319515182,1710815488110,-500.0,0.00055616,120]
[319515183,1710815488121,-500.0,0.00055616,120]
[319515184,1710815488132,-500.0,0.00055616,120]
[319515185,1710815488143,-629.18,0.00055616,120]
[319515186,1710815488155,-500.0,0.00055616,120]
[319515187,1710815488166,-500.0,0.00055616,120]
[319515188,1710815488177,-401.8992692,0.00055616,120]
[319515189,1710815488190,-500.0,0.00055616,120]
[319515190,1710815488202,-2203.11,0.00055616,120]
[319515191,1710815488215,-500.0,0.00055616,120]
[319515192,1710815488227,-500.0,0.00055616,120]
[319515193,1710815488237,-500.0,0.00055616,120]
[319515194,1710815488248,-500.0,0.00055616,120]
[319515195,1710815488259,-500.0,0.00055616,120]
[319515196,1710815488270,-543.05,0.00055616,120]
[319515197,1710815488280,-500.0,0.00055616,120]
[319515198,1710815488290,-500.0,0.00055616,120]
[319515199,1710815488300,-500.0,0.00055616,120]
[319515200,1710815488310,-500.0,0.00055616,120]
[319515201,1710815488320,-500.0,0.00055616,120]
[319515202,1710815488330,-500.0,0.00055616,120]
[319515203,1710815488340,-500.0,0.00055616,120]
[319515204,1710815488350,-1193.44,0.00055616,120]
[319515205,1710815488359,-500.0,0.00055616,120]
[319515206,1710815488369,-505.62036877,0.00055616,120]
[319515207,1710815488379,-500.0,0.00055616,120]
[319515208,1710815488389,-500.0,0.00055616,120]
[319515209,1710815488604,-500.0,0.00055616,120]
[319515210,1710815488613,-500.0,0.00055616,120]
[319515211,1710815488622,-500.0,0.00055616,120]
[319515212,1710815488632,-500.0,0.00055616,120]
[319515213,1710815488641,-665.4,0.00055616,120]
[319515214,1710815488650,-500.0,0.00055616,120]
[319515215,1710815488659,-500.0,0.00055616,120]
[319515216,1710815488668,-1023.53,0.00055616,120]
[319515217,1710815488677,-500.0,0.00055616,120]
[319515218,1710815488687,-500.0,0.00055616,120]
[319515219,1710815488696,-500.0,0.00055616,120]
[319515220,1710815488706,-500.0,0.00055616,120]
[319515221,1710815488714,-500.0,0.00055616,120]
[319515222,1710815488724,-200.0,0.00055616,120]
[319515223,1710815488733,-562.8,0.00055616,120]
[319515224,1710815488742,-679.96,0.00055616,120]
[319515225,1710815488751,-500.0,0.00055616,120]
[319515226,1710815488761,-500.0,0.00055616,120]
[319515227,1710815488770,-500.0,0.00055616,120]
[319515228,1710815488779,-500.0,0.00055616,120]
[319515229,1710815488788,-500.0,0.00055616,120]
[319515230,1710815488797,-500.0,0.00055616,120]
[319515231,1710815488807,-500.0,0.00055616,120]
[319515232,1710815488816,-500.0,0.00055616,120]
[319515233,1710815488826,-500.0,0.00055616,120]
[319515234,1710815488835,-500.0,0.00055616,120]
[319515235,1710815488845,-500.0,0.00055616,120]
[319515236,1710815488854,-500.0,0.00055616,120]
[319515237,1710815488863,-500.0,0.00055616,120]
[319515238,1710815488873,-500.0,0.00055616,120]
[319515239,1710815488882,-500.0,0.00055616,120]
[319515240,1710815488891,-605.17,0.00055616,120]
[319515241,1710815488901,-500.0,0.00055616,120]
[319515242,1710815488911,-500.0,0.00055616,120]
[319515243,1710815488920,-500.0,0.00055616,120]
[319515244,1710815488929,-519.12,0.00055616,120]
[319515245,1710815488941,-500.0,0.00055616,120]
[319515246,1710815488950,-268.79573384,0.00055616,120]
[319515247,1710815488959,-500.0,0.00055616,120]
[319515248,1710815488969,-500.0,0.00055616,120]
[319515249,1710815488978,-808.77,0.00055616,120]
[319515250,1710815488987,-500.0,0.00055616,120]
[319515251,1710815488997,-500.0,0.00055616,120]
[319515252,1710815489006,-500.0,0.00055616,120]
[319515253,1710815489016,-500.0,0.00055616,120]
[319515254,1710815489025,-617.67,0.00055616,120]
[319515255,1710815489034,-500.0,0.00055616,120]
[319515256,1710815489044,-500.0,0.00055616,120]
[319515257,1710815489053,-500.0,0.00055616,120]
[319515258,1710815489062,-500.0,0.00055616,120]
[319515259,1710815489071,-500.0,0.00055616,120]
[319515260,1710815489081,-500.0,0.00055616,120]
[319515261,1710815489090,-576.88,0.00055616,120]
[319515262,1710815489099,-560.64,0.00055616,120]
[319515263,1710815489109,-500.0,0.00055616,120]
[319515264,1710815489118,-500.0,0.00055616,120]
[319515265,1710815489128,-500.0,0.00055616,120]
[319515266,1710815489137,-860.34,0.00055616,120]
[319515267,1710815489146,-500.0,0.00055616,120]
[319515268,1710815489155,-500.0,0.00055616,120]
[319515269,1710815489165,-502.54863166,0.00055616,120]
[319515270,1710815489174,-500.0,0.00055616,120]
[319515271,1710815489186,-767.96,0.00055616,120]
[319515272,1710815489196,-500.0,0.00055616,120]
[319515273,1710815489206,-500.0,0.00055616,120]
[319515274,1710815489216,-500.0,0.00055616,120]
[319515275,1710815489226,-500.0,0.00055616,120]
[319515276,1710815489235,-651.74,0.00055616,120]
[319515277,1710815489245,-500.0,0.00055616,120]
[319515278,1710815489255,-510.12,0.00055616,120]
[319515279,1710815489264,-500.0,0.00055616,120]
[319515280,1710815489273,-500.0,0.00055616,120]
[319515281,1710815489283,-500.0,0.00055616,120]
[319515282,1710815489292,-500.0,0.00055616,120]
[319515283,1710815489302,-500.0,0.00055616,120]
[319515284,1710815489312,-500.0,0.00055616,120]
[319515285,1710815489321,-500.0,0.00055616,120]
[319515286,1710815489331,-560.99,0.00055616,120]
[319515287,1710815489340,-500.0,0.00055616,120]
[319515288,1710815489350,-500.0,0.00055616,120]
[319515289,1710815489359,-500.0,0.00055616,120]
[319515290,1710815489369,-500.0,0.00055616,120]
[319515291,1710815489379,-500.0,0.00055616,120]
[319515292,1710815489390,-500.0,0.00055616,120]
[319515293,1710815489399,-500.0,0.00055616,120]
[319515294,1710815489409,-499.58763825,0.00055616,120]
[319515295,1710815489418,-500.0,0.00055616,120]
[319515296,1710815489428,-500.0,0.00055616,120]
[319515297,1710815489441,-500.0,0.00055616,120]
[319515298,1710815489450,-500.0,0.00055616,120]
[319515299,1710815489460,-500.0,0.00055616,120]
[319515300,1710815489470,-500.0,0.00055616,120]
[319515301,1710815489479,-500.0,0.00055616,120]
[319515302,1710815489489,-500.0,0.00055616,120]
[319515303,1710815489498,-1149.13,0.00055616,120]
[319515304,1710815489507,-500.0,0.00055616,120]
[319515305,1710815489517,-500.0,0.00055616,120]
[319515306,1710815489526,-500.0,0.00055616,120]
[319515307,1710815489536,-500.0,0.00055616,120]
[319515308,1710815489546,-500.0,0.00055616,120]
[319515309,1710815489555,-526.59,0.00055616,120]
[319515310,1710815489564,-500.0,0.00055616,120]
[319515311,1710815489573,-500.0,0.00055616,120]
[319515312,1710815489583,-1855.21,0.00055616,120]
[319515313,1710815489593,-570.05,0.00055616,120]
[319515314,1710815489602,-500.0,0.00055616,120]
[319515315,1710815489611,-500.0,0.00055616,120]
[319515316,1710815489621,-500.0,0.00055616,120]
[319515317,1710815489630,-500.0,0.00055616,120]
[319515318,1710815489639,-500.0,0.00055616,120]
[319515319,1710815489648,-500.0,0.00055616,120]
[319515320,1710815489657,-500.0,0.00055616,120]
[319515321,1710815489666,-500.0,0.00055616,120]
[319515322,1710815489676,-562.65,0.00055616,120]
[319515323,1710815489688,-500.0,0.00055616,120]
[319515324,1710815489698,-500.0,0.00055616,120]
[319515325,1710815489707,-500.0,0.00055616,120]
[319515326,1710815489716,-500.0,0.00055616,120]
[319515327,1710815489726,-500.0,0.00055616,120]
[319515328,1710815489736,-500.0,0.00055616,120]
[319515329,1710815489745,-1166.58,0.00055616,120]
[319515330,1710815489755,-500.0,0.00055616,120]
[319515331,1710815489764,-500.0,0.00055616,120]
[319515332,1710815489774,-850.9,0.00055616,120]
[319515333,1710815489784,-500.0,0.00055616,120]
[319515334,1710815489793,-500.0,0.00055616,120]
[319515335,1710815489802,-500.0,0.00055616,120]
[319515336,1710815489812,-545.02,0.00055616,120]
[319515337,1710815489822,-500.0,0.00055616,120]
[319515338,1710815489832,-500.0,0.00055616,120]
[319515339,1710815489842,-633.95,0.00055616,120]
[319515340,1710815489852,-500.0,0.00055616,120]
[319515341,1710815489861,-1253.56,0.00055616,120]
[319515342,1710815489871,-500.0,0.00055616,120]
[319515343,1710815489881,-500.0,0.00055616,120]
[319515344,1710815489890,-500.0,0.00055616,120]
[319515345,1710815489900,-500.0,0.00055616,120]
[319515346,1710815489909,-500.0,0.00055616,120]
[319515347,1710815489919,-500.0,0.00055616,120]
[319515348,1710815489929,-818.27,0.00055616,120]
[319515349,1710815489942,-542.07,0.00055616,120]
[319515350,1710815489951,-500.0,0.00055616,120]
[319515351,1710815489960,-500.0,0.00055616,120]
[319515352,1710815489969,-500.0,0.00055616,120]
[319515353,1710815489978,-500.0,0.00055616,120]
[319515354,1710815489988,-500.0,0.00055616,120]
[319515355,1710815489998,-500.0,0.00055616,120]
[319515356,1710815490007,-500.0,0.00055616,120]
[319515357,1710815490017,-500.0,0.00055616,120]
[319515358,1710815490027,-500.0,0.00055616,120]
[319515359,1710815490036,-500.0,0.00055616,120]
[319515360,1710815490046,-701.1,0.00055616,120]
[319515361,1710815490056,-500.0,0.00055616,120]
[319515362,1710815490066,-500.0,0.00055616,120]
[319515363,1710815490076,-500.0,0.00055616,120]
[319515364,1710815490086,-500.0,0.00055616,120]
[319515365,1710815490095,-500.39,0.00055616,120]
[319515366,1710815490105,-500.0,0.00055616,120]
[319515367,1710815490115,-1016.71,0.00055616,120]
[319515368,1710815490124,-500.0,0.00055616,120]
[319515369,1710815490133,-904.07,0.00055616,120]
[319515370,1710815490143,-500.0,0.00055616,120]
[319515371,1710815490153,-500.0,0.00055616,120]
[319515372,1710815490163,-500.0,0.00055616,120]
[319515373,1710815490172,-500.0,0.00055616,120]
[319515374,1710815490182,-729.32,0.00055616,120]
[319515375,1710815490195,-500.0,0.00055616,120]
[319515376,1710815490204,-500.0,0.00055616,120]
[319515377,1710815490215,-546.36,0.00055616,120]
[319515378,1710815490226,-500.0,0.00055616,120]
[319515379,1710815490235,-500.0,0.00055616,120]
[319515380,1710815490245,-500.0,0.00055616,120]
[319515381,1710815490255,-500.0,0.00055616,120]
[319515382,1710815490265,-500.0,0.00055616,120]
[319515383,1710815490275,-856.53,0.00055616,120]
[319515384,1710815490285,-613.8,0.00055616,120]
[319515385,1710815490296,-1013.58,0.00055616,120]
[319515386,1710815490306,-500.0,0.00055616,120]
[319515387,1710815490316,-500.0,0.00055616,120]
[319515388,1710815490326,-574.82,0.00055616,120]
[319515389,1710815490335,-500.0,0.00055616,120]
[319515390,1710815490346,-862.05,0.00055616,120]
[319515391,1710815490356,-562.69,0.00055616,120]
[319515392,1710815490366,-500.0,0.00055616,120]
[319515393,1710815490375,-768.51,0.00055616,120]
[319515394,1710815490385,-617.58,0.00055616,120]
[319515395,1710815490394,-500.0,0.00055616,120]